[Event "Chinese Championship-B Women 2024"]
[Site "Liaocheng"]
[Date "2024.04.24"]
[Round "3.4"]
[White "Mu, Wangxueyao"]
[Black "Gao, Muziyan"]
[Result "1-0"]
[WhiteElo "1738"]
[BlackElo "1891"]
[PlyCount "57"]
[EventDate "2024.04.24"]
[EventType "swiss"]
[EventCountry "CHN"]
[TimeControl "5400+30"]

1. d4 {[%emt 0:00:02]} Nf6 {[%emt 0:00:07]} 2. c4 {[%emt 0:00:17]} e6 {[%emt 0:00:37]} 3. Nc3 {[%emt 0:01:02]} Bb4 {[%emt 0:03:14]} 4. Qc2 {[%emt 0:01:11]} d5 {[%emt 0:01:39]} 5. a3 {[%emt 0:00:03]} Bxc3+ {[%emt 0:03:23]} 6. Qxc3 {[%emt 0:00:04]} dxc4 {[%emt 0:03:11]} 7. Qxc4 {[%emt 0:00:06]} O-O {[%emt 0:00:32]} 8. Nf3 {[%emt 0:00:07]} b6 {[%emt 0:07:40]} 9. Bf4 {[%emt 0:16:21]} Nd5 {[%emt 0:09:36]} 10. Bg5 {[%emt 1:16:17]} f6 {[%emt 0:10:26]} 11. Bh4 {[%emt 0:00:00]} Ba6 {[%emt 0:00:24]} 12. Qc2 {[%emt 0:00:00]} Qe8 {[%emt 0:08:28]} 13. e3 {[%emt 0:00:00]} Bxf1 {[%emt 0:01:42]} 14. Rxf1 {[%emt 0:00:00]} Qb5 {[%emt 0:05:13]} 15. O-O-O {[%emt 0:00:00]} c5 {[%emt 0:01:37]} 16. Bg3 {[%emt 0:00:00]} Na6 {[%emt 0:12:01]} 17. e4 {[%emt 0:00:00]} Rfc8 {[%emt 0:01:47]} 18. Kb1 {[%emt 0:00:00]} Ne7 {[%emt 0:01:13]} 19. Bd6 {[%emt 0:04:30]} Nc6 {[%emt 0:07:06]} 20. d5 {[%emt 0:00:00]} exd5 {[%emt 0:01:51]} 21. exd5 {[%emt 0:00:00]} Na5 {[%emt 0:00:55]} 22. Be7 {[%emt 0:00:00]} c4 {[%emt 0:06:56]} 23. d6 {[%emt 0:00:00]} Qd7 {[%emt 0:01:19]} 24. Rfe1 {[%emt 0:00:00]} Re8 {[%emt 0:03:01]} 25. Nd4 {[%emt 0:00:00]} Nc5 {[%emt 0:04:40]} 26. Re3 {[%emt 0:00:00]} Kh8 {[%emt 0:03:27]} 27. Rh3 {[%emt 0:04:00]} Nd3 {[%emt 0:00:48]} 28. Rdxd3 {[%emt 0:00:30]} Rxe7 {[%emt 0:00:59]} 29. Rde3 {[%emt 0:00:00]} 1-0

[Event "Chinese Championship-B Women 2024"]
[Site "Liaocheng"]
[Date "2024.04.24"]
[Round "3.5"]
[White "Men, Jiayi"]
[Black "Wang, Shunshun"]
[Result "1/2-1/2"]
[WhiteElo "1845"]
[BlackElo "1763"]
[PlyCount "102"]
[EventDate "2024.04.24"]
[EventType "swiss"]
[EventCountry "CHN"]
[TimeControl "5400+30"]

1. d4 {[%emt 0:00:01]} d5 {[%emt 0:05:34]} 2. Nf3 {[%emt 0:00:27]} Nf6 {[%emt 0:00:24]} 3. g3 {[%emt 0:00:14]} c5 {[%emt 0:00:11]} 4. Bg2 {[%emt 0:00:41]} cxd4 {[%emt 0:00:28]} 5. Nxd4 {[%emt 0:00:06]} e5 {[%emt 0:00:09]} 6. Nf3 {[%emt 0:00:52]} Nc6 {[%emt 0:00:22]} 7. O-O {[%emt 0:02:34]} Bf5 {[%emt 0:04:35]} 8. Bg5 {[%emt 0:02:07]} Be7 {[%emt 0:00:39]} 9. c3 {[%emt 0:12:00]} h6 {[%emt 0:01:27]} 10. Bxf6 {[%emt 0:00:44]} Bxf6 {[%emt 0:00:13]} 11. Qa4 {[%emt 0:03:40]} e4 {[%emt 0:03:52]} 12. Nd4 {[%emt 0:03:05]} Bxd4 {[%emt 0:01:27]} 13. cxd4 {[%emt 0:00:02]} Qb6 {[%emt 0:03:08]} 14. Nc3 {[%emt 0:01:34]} Rd8 {[%emt 0:09:14]} 15. b3 {[%emt 0:07:20]} O-O {[%emt 0:01:33]} 16. Rfd1 {[%emt 0:04:46]} a6 {[%emt 0:25:30]} 17. Rac1 {[%emt 0:20:25]} Qa7 {[%emt 0:06:10]} 18. Qa3 {[%emt 0:02:26]} Bg4 {[%emt 0:01:38]} 19. h3 {[%emt 0:03:30]} Be6 {[%emt 0:00:15]} 20. e3 {[%emt 0:01:41]} Rc8 {[%emt 0:02:28]} 21. Nxe4 dxe4 {[%emt 0:00:06]} 22. d5 {[%emt 0:05:43]} Bd7 {[%emt 0:01:12]} 23. dxc6 {[%emt 0:00:08]} Bxc6 {[%emt 0:00:03]} 24. Qb4 {[%emt 0:01:36]} a5 {[%emt 0:03:29]} 25. Qd4 {[%emt 0:01:20]} Qxd4 {[%emt 0:00:06]} 26. Rxd4 {[%emt 0:00:08]} Rcd8 {[%emt 0:00:47]} 27. Rcd1 {[%emt 0:01:54]} Rxd4 {[%emt 0:00:09]} 28. Rxd4 {[%emt 0:00:02]} Re8 {[%emt 0:00:15]} 29. g4 {[%emt 0:00:37]} g6 {[%emt 0:00:46]} 30. Kh2 {[%emt 0:00:51]} Kg7 {[%emt 0:00:24]} 31. Kg3 {[%emt 0:00:20]} Kf6 {[%emt 0:00:48]} 32. h4 {[%emt 0:01:18]} Re5 {[%emt 0:02:53]} 33. a3 {[%emt 0:02:40]} Rb5 {[%emt 0:03:29]} 34. b4 {[%emt 0:00:26]} axb4 {[%emt 0:00:59]} 35. axb4 {[%emt 0:00:06]} Ke5 {[%emt 0:01:14]} 36. Bxe4 {[%emt 0:02:08]} Bxe4 {[%emt 0:01:46]} 37. f4+ {[%emt 0:00:04]} Kf6 {[%emt 0:08:09]} 38. Rxe4 {[%emt 0:00:04]} Rd5 {[%emt 0:00:19]} 39. g5+ {[%emt 0:01:36]} Kg7 {[%emt 0:02:59]} 40. gxh6+ {[%emt 0:02:20]} Kxh6 {[%emt 0:00:05]} 41. Re7 {[%emt 0:00:15]} Rb5 {[%emt 0:00:49]} 42. Rxf7 {[%emt 0:01:13]} Rxb4 {[%emt 0:00:05]} 43. Kf3 {[%emt 0:00:33]} b5 {[%emt 0:00:20]} 44. e4 {[%emt 0:01:10]} Rb1 {[%emt 0:01:22]} 45. e5 {[%emt 0:03:00]} b4 {[%emt 0:00:21]} 46. e6 {[%emt 0:02:01]} b3 {[%emt 0:00:25]} 47. Rb7 {[%emt 0:00:22]} Re1 {[%emt 0:01:04]} 48. Rxb3 {[%emt 0:00:26]} Rxe6 {[%emt 0:00:02]} 49. Kg4 {[%emt 0:00:08]} Re1 {[%emt 0:00:32]} 50. Rb6 {[%emt 0:00:29]} Rg1+ {[%emt 0:00:14]} 51. Kh3 {[%emt 0:00:16]} Rf1 {[%emt 0:00:28]} 1/2-1/2

[Event "Chinese Championship-B Women 2024"]
[Site "Liaocheng"]
[Date "2024.04.24"]
[Round "3.6"]
[White "Zhou, Lanqier"]
[Black "Zhao, Yunqing"]
[Result "1/2-1/2"]
[WhiteElo "1654"]
[BlackElo "1965"]
[PlyCount "74"]
[EventDate "2024.04.24"]
[EventType "swiss"]
[EventCountry "CHN"]
[TimeControl "5400+30"]

1. d4 {[%emt 0:00:03]} Nf6 {[%emt 0:00:05]} 2. c4 {[%emt 0:00:04]} e6 {[%emt 0:00:03]} 3. Nf3 {[%emt 0:00:04]} b6 {[%emt 0:00:13]} 4. g3 {[%emt 0:00:11]} Bb7 {[%emt 0:00:07]} 5. Bg2 {[%emt 0:00:09]} Be7 {[%emt 0:00:06]} 6. O-O {[%emt 0:00:09]} O-O {[%emt 0:00:05]} 7. Nc3 {[%emt 0:00:42]} Ne4 {[%emt 0:00:13]} 8. Bd2 {[%emt 0:01:02]} Bf6 {[%emt 0:00:19]} 9. e3 {[%emt 0:09:06]} d6 {[%emt 0:05:18]} 10. Qc2 {[%emt 0:05:52]} Nxd2 {[%emt 0:01:50]} 11. Qxd2 {[%emt 0:03:11]} Nd7 {[%emt 0:04:09]} 12. b4 {[%emt 0:09:17]} g6 {[%emt 0:10:32]} 13. Rfd1 {[%emt 0:07:03]} Bg7 {[%emt 0:04:12]} 14. Rab1 {[%emt 0:04:38]} Qc8 {[%emt 0:08:00]} 15. d5 {[%emt 0:14:18]} e5 {[%emt 0:09:05]} 16. Rdc1 {[%emt 0:06:29]} Qd8 {[%emt 0:09:37]} 17. Ne4 {[%emt 0:08:54]} Nf6 {[%emt 0:06:46]} 18. Nxf6+ {[%emt 0:01:06]} Bxf6 {[%emt 0:00:24]} 19. Ne1 {[%emt 0:01:53]} Be7 {[%emt 0:06:04]} 20. Nd3 {[%emt 0:04:46]} f5 {[%emt 0:07:10]} 21. Qe2 {[%emt 0:06:15]} e4 {[%emt 0:06:05]} 22. Nf4 {[%emt 0:00:14]} Bc8 {[%emt 0:00:23]} 23. f3 {[%emt 0:02:16]} exf3 {[%emt 0:07:39]} 24. Bxf3 {[%emt 0:00:05]} Bg5 {[%emt 0:01:29]} 25. Ne6 {[%emt 0:03:34]} Bxe6 {[%emt 0:00:06]} 26. dxe6 {[%emt 0:00:03]} Rc8 {[%emt 0:05:00]} 27. Bd5 {[%emt 0:01:27]} Kh8 {[%emt 0:02:05]} 28. b5 {[%emt 0:00:23]} Qe7 {[%emt 0:02:26]} 29. Rf1 {[%emt 0:00:45]} Qg7 {[%emt 0:03:57]} 30. Rf3 {[%emt 0:01:31]} Rce8 {[%emt 0:01:02]} 31. Kg2 {[%emt 0:01:01]} Rf6 {[%emt 0:00:46]} 32. Rbf1 {[%emt 0:00:43]} Rfxe6 {[%emt 0:00:42]} 33. Bxe6 {[%emt 0:01:02]} Rxe6 {[%emt 0:00:01]} 34. h4 {[%emt 0:02:22]} Bf6 {[%emt 0:00:41]} 35. Qd3 {[%emt 0:01:15]} Qe7 {[%emt 0:00:41]} 36. Re1 {[%emt 0:02:12]} Re4 {[%emt 0:00:19]} 37. Qd5 {[%emt 0:02:54]} Kg7 {[%emt 0:00:37]} 1/2-1/2

[Event "Chinese Championship-B Women 2024"]
[Site "Liaocheng"]
[Date "2024.04.24"]
[Round "3.7"]
[White "Hu, Yu A."]
[Black "Xue, Shixuan"]
[Result "0-1"]
[WhiteElo "2148"]
[BlackElo "1790"]
[PlyCount "36"]
[EventDate "2024.04.24"]
[EventType "swiss"]
[EventCountry "CHN"]
[TimeControl "5400+30"]

1. c4 {[%emt 0:02:10]} e5 {[%emt 0:01:09]} 2. Nc3 {[%emt 0:00:10]} Nf6 {[%emt 0:02:18]} 3. Nf3 {[%emt 0:00:08]} Nc6 {[%emt 0:00:20]} 4. g3 {[%emt 0:00:40]} d5 {[%emt 0:02:41]} 5. cxd5 {[%emt 0:00:10]} Nxd5 {[%emt 0:00:08]} 6. Bg2 {[%emt 0:00:09]} Be6 {[%emt 0:01:02]} 7. O-O {[%emt 0:00:31]} Be7 {[%emt 0:01:23]} 8. d3 {[%emt 0:04:17]} O-O {[%emt 0:05:18]} 9. Bd2 {[%emt 0:01:06]} f5 {[%emt 0:09:04]} 10. Ng5 {[%emt 0:09:25]} Bxg5 {[%emt 0:05:02]} 11. Bxg5 {[%emt 0:00:10]} Nxc3 {[%emt 0:01:03]} 12. Bxd8 {[%emt 0:52:41]} Nxd1 {[%emt 0:00:34]} 13. Bg5 {[%emt 0:07:29]} Nxb2 {[%emt 0:11:46]} 14. Rfb1 {[%emt 0:00:06]} Na4 {[%emt 0:00:31]} 15. Rxb7 {[%emt 0:00:09]} Nd4 {[%emt 0:01:25]} 16. e3 {[%emt 0:00:55]} Ne2+ {[%emt 0:02:01]} 17. Kf1 {[%emt 0:00:06]} Nec3 {[%emt 0:00:18]} 18. Rxc7 {[%emt 0:06:25]} e4 {[%emt 0:01:14]} 0-1

[Event "Chinese Championship-B Women 2024"]
[Site "Liaocheng"]
[Date "2024.04.24"]
[Round "3.8"]
[White "Guo, Hanxi"]
[Black "Chu, Ruotong"]
[Result "1/2-1/2"]
[WhiteElo "1699"]
[BlackElo "2124"]
[PlyCount "102"]
[EventDate "2024.04.24"]
[EventType "swiss"]
[EventCountry "CHN"]
[TimeControl "5400+30"]

1. e4 {[%emt 0:00:03]} c5 {[%emt 0:06:19]} 2. Nf3 {[%emt 1:31:27]} a6 {[%emt 0:05:01]} 3. d4 {[%emt 0:00:00]} cxd4 {[%emt 0:01:20]} 4. Nxd4 {[%emt 0:00:00]} e5 {[%emt 0:00:41]} 5. Nf3 {[%emt 0:00:00]} Nf6 {[%emt 0:00:17]} 6. Nc3 {[%emt 0:00:00]} Bb4 {[%emt 0:00:45]} 7. Bd2 {[%emt 0:00:00]} O-O {[%emt 0:03:14]} 8. Bd3 {[%emt 0:00:00]} d5 {[%emt 0:11:47]} 9. Nxd5 {[%emt 0:00:00]} Nxd5 {[%emt 0:00:59]} 10. exd5 {[%emt 0:00:00]} Bxd2+ {[%emt 0:00:05]} 11. Nxd2 {[%emt 0:00:00]} Qxd5 {[%emt 0:00:03]} 12. O-O {[%emt 0:00:00]} Qd4 {[%emt 0:00:46]} 13. Qe2 {[%emt 0:00:00]} Nc6 {[%emt 0:03:30]} 14. Qe4 {[%emt 0:00:00]} Qxe4 {[%emt 0:05:36]} 15. Bxe4 {[%emt 0:00:00]} Be6 {[%emt 0:02:39]} 16. Rfe1 {[%emt 0:00:00]} Rfd8 {[%emt 0:01:07]} 17. Bxc6 {[%emt 0:00:00]} Rxd2 {[%emt 0:00:40]} 18. Bxb7 {[%emt 0:00:00]} Rb8 {[%emt 0:00:07]} 19. Bxa6 {[%emt 0:00:00]} Rxc2 {[%emt 0:00:59]} 20. b3 {[%emt 0:00:00]} Ra8 {[%emt 0:00:14]} 21. Bc4 {[%emt 0:00:00]} Bxc4 {[%emt 0:01:38]} 22. bxc4 {[%emt 0:00:00]} f6 {[%emt 0:00:01]} 23. Kf1 {[%emt 0:00:00]} Kf7 {[%emt 0:06:17]} 24. Re2 {[%emt 0:00:00]} Rxc4 {[%emt 0:00:15]} 25. Rb1 {[%emt 0:00:00]} Ra7 {[%emt 0:01:28]} 26. g3 {[%emt 0:00:00]} Ke6 {[%emt 0:00:07]} 27. Rd2 {[%emt 0:00:00]} Rd4 {[%emt 0:02:20]} 28. Rdb2 {[%emt 0:00:00]} Rda4 {[%emt 0:00:37]} 29. Rc1 {[%emt 0:00:00]} Rxa2 {[%emt 0:05:47]} 30. Rxa2 {[%emt 0:00:00]} Rxa2 {[%emt 0:00:04]} 31. Rc7 {[%emt 0:00:00]} g6 {[%emt 0:00:07]} 32. Rxh7 {[%emt 0:00:00]} Kf5 {[%emt 0:00:03]} 33. Re7 {[%emt 0:00:00]} g5 {[%emt 0:01:09]} 34. h3 {[%emt 0:00:00]} Ke4 {[%emt 0:01:16]} 35. Rf7 {[%emt 0:00:00]} f5 {[%emt 0:04:01]} 36. Kg2 {[%emt 0:00:00]} f4 {[%emt 0:01:22]} 37. gxf4 {[%emt 0:00:00]} gxf4 {[%emt 0:00:23]} 38. Rb7 {[%emt 0:00:00]} Ra6 {[%emt 0:01:35]} 39. f3+ {[%emt 0:00:00]} Kf5 {[%emt 0:00:36]} 40. Rh7 {[%emt 0:00:00]} Ra2+ {[%emt 0:01:26]} 41. Kf1 {[%emt 0:00:00]} Ke6 {[%emt 0:00:06]} 42. Rh8 {[%emt 0:00:00]} Kd5 {[%emt 0:00:29]} 43. Rd8+ {[%emt 0:00:00]} Kc4 {[%emt 0:00:20]} 44. Kg1 {[%emt 0:00:00]} Ra1+ {[%emt 0:00:34]} 45. Kg2 {[%emt 0:00:00]} Ra2+ {[%emt 0:00:06]} 46. Kg1 {[%emt 0:00:00]} Ra6 {[%emt 0:00:13]} 47. Kg2 {[%emt 0:00:00]} Rg6+ {[%emt 0:00:05]} 48. Kf2 {[%emt 0:00:00]} Rh6 {[%emt 0:00:03]} 49. Kg2 {[%emt 0:00:00]} Rg6+ {[%emt 0:00:11]} 50. Kf2 {[%emt 0:00:00]} Rh6 {[%emt 0:00:02]} 51. Kg2 {[%emt 0:00:00]} Rg6+ {[%emt 0:00:02]} 1/2-1/2

[Event "Chinese Championship-B Women 2024"]
[Site "Liaocheng"]
[Date "2024.04.24"]
[Round "3.9"]
[White "Xu, Mingwei"]
[Black "Pian, Junyao"]
[Result "1-0"]
[WhiteElo "2037"]
[BlackElo "1717"]
[PlyCount "61"]
[EventDate "2024.04.24"]
[EventType "swiss"]
[EventCountry "CHN"]
[TimeControl "5400+30"]

1. e4 {[%emt 0:00:03]} c5 {[%emt 0:00:09]} 2. Nf3 {[%emt 1:31:27]} d6 {[%emt 1:31:21]} 3. d4 {[%emt 0:00:00]} cxd4 {[%emt 0:00:00]} 4. Qxd4 {[%emt 0:00:00]} Nc6 {[%emt 0:00:00]} 5. Qe3 {[%emt 0:01:30]} g6 {[%emt 0:00:00]} 6. Be2 {[%emt 0:00:30]} Bg7 {[%emt 0:02:00]} 7. h3 {[%emt 0:00:30]} Nf6 {[%emt 0:00:00]} 8. O-O {[%emt 0:00:00]} Qc7 {[%emt 0:00:00]} 9. c4 {[%emt 0:00:00]} b6 {[%emt 0:01:30]} 10. Nc3 {[%emt 0:01:30]} O-O {[%emt 0:00:30]} 11. Rb1 {[%emt 0:00:30]} Na5 {[%emt 0:00:30]} 12. b3 {[%emt 0:00:00]} Ba6 {[%emt 0:00:30]} 13. Bb2 {[%emt 0:01:00]} Qc5 {[%emt 0:00:30]} 14. Qd2 {[%emt 0:00:00]} Rfd8 15. Bd3 {[%emt 0:01:00]} e6 {[%emt 0:01:00]} 16. Rfe1 {[%emt 0:00:00]} Nd7 {[%emt 0:00:00]} 17. Na4 {[%emt 0:00:00]} Qc7 {[%emt 0:00:00]} 18. Bxg7 {[%emt 0:00:00]} Kxg7 {[%emt 0:00:00]} 19. b4 {[%emt 0:00:00]} Nxc4 {[%emt 0:00:00]} 20. Qc3+ {[%emt 0:00:00]} Nde5 {[%emt 0:00:00]} 21. b5 {[%emt 0:00:00]} Rac8 {[%emt 0:00:00]} 22. bxa6 {[%emt 0:00:00]} Qd7 {[%emt 0:00:00]} 23. Bxc4 {[%emt 0:00:00]} Qxa4 {[%emt 0:00:00]} 24. Nxe5 {[%emt 0:00:00]} dxe5 {[%emt 0:00:00]} 25. Qxe5+ {[%emt 0:00:00]} f6 {[%emt 0:00:00]} 26. Bb5 {[%emt 0:00:00]} Qxa2 {[%emt 0:00:00]} 27. Qb2 {[%emt 0:00:00]} Qa5 {[%emt 0:00:00]} 28. Qb4 {[%emt 0:00:00]} Qa2 {[%emt 0:00:00]} 29. Rb2 {[%emt 0:00:00]} Qa5 {[%emt 0:00:00]} 30. Qxa5 {[%emt 0:00:00]} bxa5 {[%emt 0:00:00]} 31. Bf1 {[%emt 0:00:00]} 1-0

[Event "Chinese Championship-B Women 2024"]
[Site "Liaocheng"]
[Date "2024.04.24"]
[Round "3.10"]
[White "Du, Yuxin"]
[Black "Lou, Yuxin"]
[Result "1-0"]
[WhiteElo "1960"]
[BlackElo "1706"]
[PlyCount "67"]
[EventDate "2024.04.24"]
[EventType "swiss"]
[EventCountry "CHN"]
[TimeControl "5400+30"]

1. e4 {[%emt 1:31:00]} c5 {[%emt 1:31:00]} 2. Nf3 {[%emt 0:00:30]} Nc6 {[%emt 0:00:30]} 3. Bb5 {[%emt 0:00:00]} g6 {[%emt 0:00:00]} 4. O-O {[%emt 0:00:00]} Bg7 {[%emt 0:01:00]} 5. Bxc6 {[%emt 0:01:30]} dxc6 {[%emt 0:00:00]} 6. h3 {[%emt 0:00:00]} b6 7. Nc3 {[%emt 0:01:00]} Nf6 {[%emt 0:00:00]} 8. d3 {[%emt 0:00:30]} O-O {[%emt 0:02:00]} 9. Bf4 {[%emt 0:00:00]} Ba6 {[%emt 0:00:30]} 10. Re1 {[%emt 0:00:00]} Qc8 {[%emt 0:00:30]} 11. Qe2 {[%emt 0:01:30]} e6 {[%emt 0:00:30]} 12. Qe3 {[%emt 0:00:30]} Rd8 {[%emt 0:00:30]} 13. Bg5 {[%emt 0:00:00]} Re8 {[%emt 0:00:30]} 14. Bxf6 {[%emt 0:00:00]} Bxf6 {[%emt 0:00:00]} 15. e5 {[%emt 0:00:00]} Bg7 {[%emt 0:00:00]} 16. Ne4 {[%emt 0:00:00]} Rd8 {[%emt 0:00:00]} 17. Nf6+ {[%emt 0:02:30]} Bxf6 {[%emt 0:00:00]} 18. exf6 {[%emt 0:00:00]} Rd5 {[%emt 0:02:30]} 19. c4 {[%emt 0:00:00]} Rf5 {[%emt 0:00:30]} 20. g4 {[%emt 0:01:30]} Rxf6 {[%emt 0:00:00]} 21. g5 {[%emt 0:00:00]} Rxf3 {[%emt 0:00:00]} 22. Qxf3 {[%emt 0:00:00]} Qd8 {[%emt 0:00:00]} 23. Qe3 {[%emt 0:00:00]} Qd7 {[%emt 0:00:00]} 24. Rad1 Rd8 {[%emt 0:00:00]} 25. b3 Bc8 {[%emt 0:03:00]} 26. Qe5 {[%emt 0:03:00]} Qe7 {[%emt 0:00:00]} 27. Re4 {[%emt 0:00:00]} Rd4 {[%emt 0:00:00]} 28. a3 {[%emt 0:00:00]} Qd7 {[%emt 0:01:30]} 29. Rxd4 {[%emt 0:01:30]} cxd4 {[%emt 0:00:30]} 30. b4 {[%emt 0:00:30]} c5 {[%emt 0:00:00]} 31. bxc5 {[%emt 0:00:00]} bxc5 {[%emt 0:00:00]} 32. Rb1 {[%emt 0:00:00]} Bb7 {[%emt 0:00:00]} 33. Qb8+ {[%emt 0:00:00]} Bc8 {[%emt 0:00:00]} 34. Qa8 {[%emt 0:00:00]} 1-0

[Event "Chinese Championship-B Women 2024"]
[Site "Liaocheng"]
[Date "2024.04.24"]
[Round "3.11"]
[White "Li, Peishan"]
[Black "Guo, Weibao"]
[Result "0-1"]
[WhiteElo "1647"]
[BlackElo "1954"]
[PlyCount "78"]
[EventDate "2024.04.24"]
[EventType "swiss"]
[EventCountry "CHN"]
[TimeControl "5400+30"]

1. e4 {[%emt 0:00:03]} e6 {[%emt 0:00:04]} 2. d4 {[%emt 0:00:04]} d5 {[%emt 0:00:02]} 3. Nd2 {[%emt 0:00:05]} a6 {[%emt 0:00:44]} 4. e5 {[%emt 0:00:31]} c5 {[%emt 0:00:05]} 5. c3 {[%emt 0:00:04]} Nc6 {[%emt 0:00:08]} 6. Ndf3 {[%emt 0:00:59]} cxd4 {[%emt 0:01:32]} 7. cxd4 {[%emt 0:00:07]} Bb4+ {[%emt 0:00:14]} 8. Bd2 {[%emt 0:00:12]} Qb6 {[%emt 0:00:21]} 9. Bxb4 {[%emt 0:02:36]} Qxb4+ {[%emt 0:00:35]} 10. Qd2 {[%emt 0:00:05]} Bd7 {[%emt 0:02:17]} 11. Bd3 Rc8 {[%emt 0:00:30]} 12. Ne2 Nge7 {[%emt 0:00:30]} 13. a4 Qxd2+ {[%emt 0:00:30]} 14. Nxd2 Na5 {[%emt 0:00:30]} 15. b4 Nc4 {[%emt 0:00:30]} 16. Bxc4 dxc4 {[%emt 0:00:30]} 17. Rc1 b5 {[%emt 0:00:30]} 18. Ne4 O-O {[%emt 0:00:30]} 19. O-O Bc6 {[%emt 0:00:30]} 20. Nd6 Ra8 {[%emt 0:00:30]} 21. Nc3 Nc8 {[%emt 0:00:30]} 22. Nxc8 Rfxc8 {[%emt 0:00:30]} 23. Rfd1 Rd8 {[%emt 0:00:30]} 24. f3 f5 {[%emt 0:00:30]} 25. Kf2 g5 {[%emt 0:00:30]} 26. g3 Kf7 {[%emt 0:00:30]} 27. h4 gxh4 {[%emt 0:00:30]} 28. gxh4 Kg6 {[%emt 0:00:30]} 29. Rg1+ Kf7 {[%emt 0:00:30]} 30. Rgd1 Kg6 {[%emt 0:00:30]} 31. Rg1+ Kh6 {[%emt 0:00:30]} 32. Rgd1 Rd7 {[%emt 0:00:30]} 33. Ne2 a5 {[%emt 0:00:30]} 34. Nf4 axb4 {[%emt 0:00:30]} 35. axb5 Ra2+ {[%emt 0:00:30]} 36. Kg3 Rg7+ {[%emt 0:00:30]} 37. Kh3 Bxf3 {[%emt 0:00:30]} 38. Rg1 Bg4+ {[%emt 0:00:30]} 39. Kg3 Bd1+ {[%emt 0:00:30]} 0-1

[Event "Chinese Championship-B Women 2024"]
[Site "Liaocheng"]
[Date "2024.04.24"]
[Round "3.12"]
[White "Wang, Xiaoyan"]
[Black "He, Yi"]
[Result "1-0"]
[WhiteElo "1932"]
[BlackElo "1636"]
[PlyCount "73"]
[EventDate "2024.04.24"]
[EventType "swiss"]
[EventCountry "CHN"]
[TimeControl "5400+30"]

1. d4 {[%emt 0:00:04]} Nf6 {[%emt 0:00:05]} 2. c4 {[%emt 0:00:08]} e6 {[%emt 0:00:05]} 3. Nf3 {[%emt 0:01:18]} d5 {[%emt 0:00:06]} 4. Nc3 {[%emt 0:00:19]} dxc4 {[%emt 0:00:08]} 5. e4 {[%emt 0:04:01]} Bb4 {[%emt 0:00:09]} 6. Qa4+ {[%emt 0:01:45]} Nc6 {[%emt 0:00:29]} 7. Bg5 {[%emt 0:01:22]} h6 {[%emt 0:06:50]} 8. Bxf6 {[%emt 0:02:00]} gxf6 {[%emt 1:26:38]} 9. a3 {[%emt 0:10:38]} Ba5 {[%emt 0:00:00]} 10. Bxc4 {[%emt 0:02:39]} Bd7 {[%emt 0:00:00]} 11. Qc2 {[%emt 0:01:53]} a6 {[%emt 0:00:00]} 12. O-O {[%emt 0:01:39]} O-O {[%emt 0:00:00]} 13. Rad1 {[%emt 0:03:43]} b5 {[%emt 0:00:00]} 14. Ba2 {[%emt 0:01:30]} Ne7 {[%emt 0:00:00]} 15. b4 {[%emt 0:11:08]} Bb6 {[%emt 0:00:00]} 16. e5 {[%emt 0:01:27]} f5 {[%emt 0:00:00]} 17. d5 {[%emt 0:01:11]} Qc8 {[%emt 0:00:00]} 18. dxe6 {[%emt 0:14:47]} Bxe6 {[%emt 0:00:00]} 19. Nd5 {[%emt 0:00:57]} Nxd5 {[%emt 0:00:00]} 20. Bxd5 {[%emt 0:00:07]} Bxd5 {[%emt 0:00:00]} 21. Rxd5 {[%emt 0:00:05]} Qe6 {[%emt 0:00:00]} 22. Rfd1 {[%emt 0:01:49]} a5 {[%emt 0:00:00]} 23. Nh4 {[%emt 0:05:50]} f4 {[%emt 0:00:00]} 24. Nf5 {[%emt 0:05:34]} axb4 {[%emt 0:00:00]} 25. axb4 {[%emt 0:00:15]} Kh8 {[%emt 0:00:00]} 26. Qe4 {[%emt 0:09:12]} Ra2 {[%emt 0:00:00]} 27. Rf1 {[%emt 0:04:47]} Rfa8 {[%emt 0:00:00]} 28. Rd3 {[%emt 0:03:36]} Ra1 {[%emt 0:03:05]} 29. Rdd1 {[%emt 0:02:26]} R1a4 {[%emt 0:04:15]} 30. Qxf4 {[%emt 0:01:12]} Kh7 {[%emt 0:00:48]} 31. h4 {[%emt 0:04:14]} Re8 {[%emt 0:00:59]} 32. Rd3 {[%emt 0:01:12]} Bc5 {[%emt 0:00:39]} 33. Rb1 {[%emt 0:00:47]} Bf8 {[%emt 0:00:15]} 34. Rg3 {[%emt 0:01:42]} Qxe5 {[%emt 0:00:48]} 35. Qg4 {[%emt 0:00:07]} Qh8 {[%emt 0:00:43]} 36. Ne7 {[%emt 0:00:42]} Bxe7 {[%emt 0:01:44]} 37. Qf5# {[%emt 0:00:03]} 1-0

[Event "Chinese Championship-B Women 2024"]
[Site "Liaocheng"]
[Date "2024.04.24"]
[Round "3.13"]
[White "Shao, Yanrui"]
[Black "Zhu, Zile"]
[Result "1/2-1/2"]
[WhiteElo "1514"]
[BlackElo "1819"]
[PlyCount "60"]
[EventDate "2024.04.24"]
[EventType "swiss"]
[EventCountry "CHN"]
[TimeControl "5400+30"]

1. f4 {[%emt 0:00:43]} e6 {[%emt 0:00:06]} 2. Nf3 {[%emt 0:00:05]} c5 {[%emt 0:00:06]} 3. g3 {[%emt 0:00:06]} g6 {[%emt 0:00:11]} 4. Bg2 {[%emt 0:00:02]} Bg7 {[%emt 0:00:09]} 5. d3 {[%emt 0:00:04]} Nc6 {[%emt 0:00:08]} 6. Nc3 {[%emt 0:00:14]} Nge7 {[%emt 0:00:23]} 7. O-O {[%emt 0:00:21]} O-O {[%emt 0:00:16]} 8. e4 {[%emt 0:01:06]} d6 {[%emt 0:00:13]} 9. h3 {[%emt 0:01:43]} Rb8 {[%emt 0:00:29]} 10. g4 {[%emt 0:00:51]} b5 {[%emt 0:00:27]} 11. Ne2 {[%emt 0:00:32]} d5 {[%emt 0:16:17]} 12. e5 {[%emt 0:00:44]} f5 {[%emt 1:17:45]} 13. g5 {[%emt 0:10:27]} Bb7 {[%emt 0:00:30]} 14. h4 {[%emt 0:06:27]} Kf7 {[%emt 0:00:30]} 15. Be3 {[%emt 1:14:35]} Qb6 {[%emt 0:00:30]} 16. c3 {[%emt 0:00:30]} a5 {[%emt 0:00:00]} 17. d4 {[%emt 0:00:00]} c4 {[%emt 0:00:00]} 18. Kf2 {[%emt 0:00:00]} Nc8 {[%emt 0:00:00]} 19. h5 {[%emt 0:00:00]} Rh8 {[%emt 0:00:00]} 20. Rh1 {[%emt 0:00:00]} N8a7 {[%emt 0:00:00]} 21. b3 {[%emt 0:00:00]} Ba6 {[%emt 0:00:00]} 22. hxg6+ {[%emt 0:00:00]} hxg6 {[%emt 0:00:00]} 23. Rxh8 {[%emt 0:00:00]} Bxh8 {[%emt 0:00:00]} 24. Rb1 {[%emt 0:00:00]} Qc7 {[%emt 0:00:00]} 25. Nh4 {[%emt 0:00:00]} Ne7 {[%emt 0:00:00]} 26. Nf3 {[%emt 0:00:00]} Bg7 {[%emt 0:00:00]} 27. Nd2 {[%emt 0:00:00]} Nec6 {[%emt 0:00:00]} 28. Ng3 {[%emt 0:00:00]} Ne7 {[%emt 0:00:00]} 29. Ne2 {[%emt 0:00:00]} Nec6 {[%emt 0:00:00]} 30. Ng3 {[%emt 0:00:00]} Ne7 {[%emt 0:00:00]} 1/2-1/2